Department Family,Entity,Date,Expenses Type,Expense Area, Supplier ,Transaction Number, Total 
Department of Health,The Christie NHS Foundation Trust,15/11/2016,Drugs,Cancer Centre Services, ALCURA UK LIMITED ,0000537931," 89,707.09 "
Department of Health,The Christie NHS Foundation Trust,30/11/2016,Drugs,Cancer Centre Services, ALCURA UK LIMITED ,0000001041,"-59,096.16 "
Department of Health,The Christie NHS Foundation Trust,30/11/2016,Drugs,Cancer Centre Services, ALCURA UK LIMITED ,0000537754,"-26,919.00 "
Department of Health,The Christie NHS Foundation Trust,30/11/2016,Drugs,Cancer Centre Services, ALCURA UK LIMITED ,0000539232,"-91,305.85 "
Department of Health,The Christie NHS Foundation Trust,30/11/2016,Drugs,Cancer Centre Services, ALCURA UK LIMITED ,0000537749," 59,096.16 "
Department of Health,The Christie NHS Foundation Trust,30/11/2016,Drugs,Cancer Centre Services, ALCURA UK LIMITED ,0000537752," 48,776.06 "
Department of Health,The Christie NHS Foundation Trust,30/11/2016,Drugs,Cancer Centre Services, ALCURA UK LIMITED ,0000539149," 59,096.16 "
Department of Health,The Christie NHS Foundation Trust,30/11/2016,Drugs,Cancer Centre Services, ALCURA UK LIMITED ,0000001043," 26,919.00 "
Department of Health,The Christie NHS Foundation Trust,10/11/2016,PET Scans - Sept 16,Medical Physics, ALLIANCE MEDICAL RADIOPHARMACY LIMITED ,0000536049," 86,862.00 "
Department of Health,The Christie NHS Foundation Trust,10/11/2016,Drugs,Cancer Centre Services, BAXTER HEALTHCARE LTD ,0000536661," 69,432.00 "
Department of Health,The Christie NHS Foundation Trust,10/11/2016,Drugs,Cancer Centre Services, BAXTER HEALTHCARE LTD ,0000535543," 1,232,885.32 "
Department of Health,The Christie NHS Foundation Trust,15/11/2016,Drugs,Cancer Centre Services, BAXTER HEALTHCARE LTD ,0000536732," 26,263.14 "
Department of Health,The Christie NHS Foundation Trust,15/11/2016,Drugs,Cancer Centre Services, BAXTER HEALTHCARE LTD ,0000536702," 357,593.80 "
Department of Health,The Christie NHS Foundation Trust,10/11/2016,Drugs,Cancer Centre Services, BAXTER HEALTHCARE LTD ,0000536698," 41,738.72 "
Department of Health,The Christie NHS Foundation Trust,10/11/2016,Drugs,Cancer Centre Services, BAXTER HEALTHCARE LTD ,0000536659," 83,196.00 "
Department of Health,The Christie NHS Foundation Trust,03/11/2016,Drugs,Cancer Centre Services, BAXTER HEALTHCARE LTD ,0000535541," 379,829.72 "
Department of Health,The Christie NHS Foundation Trust,10/11/2016,Drugs,Cancer Centre Services, BAXTER HEALTHCARE LTD ,0000536693," 72,336.00 "
Department of Health,The Christie NHS Foundation Trust,10/11/2016,Drugs,Cancer Centre Services, BAXTER HEALTHCARE LTD ,0000536663," 324,945.36 "
Department of Health,The Christie NHS Foundation Trust,10/11/2016,Drugs,Cancer Centre Services, BAXTER HEALTHCARE LTD ,0000536660," 48,360.00 "
Department of Health,The Christie NHS Foundation Trust,10/11/2016,Drugs,Cancer Centre Services, BAXTER HEALTHCARE LTD ,0000536694," 57,312.28 "
Department of Health,The Christie NHS Foundation Trust,01/11/2016,Drugs,Cancer Centre Services, BAXTER HEALTHCARE LTD ,0000538505," 336,207.60 "
Department of Health,The Christie NHS Foundation Trust,24/11/2016,Drugs,Cancer Centre Services, BOLTON NHS FOUNDATION TRUST ,0000536909," 38,491.15 "
Department of Health,The Christie NHS Foundation Trust,15/11/2016,PET Scans - Oct 16,Medical Physics, CENTRAL MCR  UNIV HOSP NHS FOUNDATION TR ,0000536891," 105,753.54 "
Department of Health,The Christie NHS Foundation Trust,10/11/2016,Medical Equipment Maintenace Contract,Cancer Centre Services, CPP FACILITIES LLP ,0000533883," 231,560.92 "
Department of Health,The Christie NHS Foundation Trust,03/11/2016,Estates Welfare Development,Estates & Facilities, CRUDEN PROPERTY SERVICES LTD ,0000535615," 25,704.39 "
Department of Health,The Christie NHS Foundation Trust,15/11/2016,Print Management Fee,Finance & Business Development, DANWOOD GROUP LTD ,0000536300," 76,964.56 "
Department of Health,The Christie NHS Foundation Trust,10/11/2016,Drugs,Cancer Centre Services, EAST CHESHIRE NHS TRUST ,0000536021," 79,407.48 "
Department of Health,The Christie NHS Foundation Trust,03/11/2016,IT Equipment,Capital, EUROPEAN ELECTRONIQUE LTD ,0000535486," 70,623.52 "
Department of Health,The Christie NHS Foundation Trust,15/11/2016,Drugs,Cancer Centre Services, EVOLUTION HOMECARE SERVICES LTD ,0000537890," 36,455.00 "
Department of Health,The Christie NHS Foundation Trust,03/11/2016,Childcare Vouchers,Human Resources, FIDELITI LIMITED ,0000536272," 33,064.79 "
Department of Health,The Christie NHS Foundation Trust,10/11/2016,Medical Equipment,Cancer Centre Services, GE MEDICAL SYSTEMS LTD ,0000536627,"-507,349.36 "
Department of Health,The Christie NHS Foundation Trust,24/11/2016,IT Equipment,Capital, HP INC.UK LIMITED ,0000538360," 27,276.84 "
Department of Health,The Christie NHS Foundation Trust,24/11/2016,IT Equipment,Capital, HP INC.UK LIMITED ,0000538307," 62,736.73 "
Department of Health,The Christie NHS Foundation Trust,24/11/2016,Proton Beam Development (PBT),Capital, INTERSERVE CONSTRUCTION LTD ,0000538752," 3,282,667.33 "
Department of Health,The Christie NHS Foundation Trust,24/11/2016,IPU Development,Capital, INTERSERVE CONSTRUCTION LTD ,0000538753," 1,099,915.26 "
Department of Health,The Christie NHS Foundation Trust,07/11/2016,Rates 16/17,Estates & Facilities, M/CR CITY COUNCIL (RATES) DD ,0000538113," 65,050.00 "
Department of Health,The Christie NHS Foundation Trust,24/11/2016,Proton Beam Development (PBT),Capital, MACE LTD ,0000537527," 27,782.03 "
Department of Health,The Christie NHS Foundation Trust,24/11/2016,Brachytherapy theatre works,Capital, MAQUET LIMITED ,0000538007," 33,532.80 "
Department of Health,The Christie NHS Foundation Trust,03/11/2016,Drugs,Cancer Centre Services, MID CHESHIRE HOSPITALS NHS FT ,0000535834," 77,692.22 "
Department of Health,The Christie NHS Foundation Trust,24/11/2016,Drugs,Cancer Centre Services, MID CHESHIRE HOSPITALS NHS FT ,0000537982," 45,630.25 "
Department of Health,The Christie NHS Foundation Trust,24/11/2016,Drugs,Cancer Centre Services, MID CHESHIRE HOSPITALS NHS FT ,0000535183," 45,630.25 "
Department of Health,The Christie NHS Foundation Trust,15/11/2016,Proton Beam Development (PBT),Capital, NATIONAL GRID ,0000537188," 82,671.83 "
Department of Health,The Christie NHS Foundation Trust,15/11/2016,Blood Products,Cancer Networked Services, NHS BLOOD AND TRANSPLANT ,0000538300," 166,154.50 "
Department of Health,The Christie NHS Foundation Trust,15/11/2016,NHS Litigation (NHSLA),Quality & Standards, NHS LITIGATION AUTHORITY ,0000538314," 56,990.00 "
Department of Health,The Christie NHS Foundation Trust,10/11/2016,Stock for all Wards & Departments,All Wards and Departments, NHS SUPPLY CHAIN ,0000533650," 775,028.04 "
Department of Health,The Christie NHS Foundation Trust,03/11/2016,Stock for all Wards & Departments,All Wards and Departments, NHS SUPPLY CHAIN ,0000536945," 29,990.69 "
Department of Health,The Christie NHS Foundation Trust,15/11/2016,Stock for all Wards & Departments,All Wards and Departments, NHS SUPPLY CHAIN ,0000538067," 34,930.11 "
Department of Health,The Christie NHS Foundation Trust,10/11/2016,Medical Equipment,Capital, NHS SUPPLY CHAIN ,0000533651," 40,790.95 "
Department of Health,The Christie NHS Foundation Trust,10/11/2016,Medical Equipment,Capital, NHS SUPPLY CHAIN ,0000533648," 763,400.04 "
Department of Health,The Christie NHS Foundation Trust,10/11/2016,Stock for all Wards & Departments,All Wards and Departments, NHS SUPPLY CHAIN ,0000537376," 41,796.34 "
Department of Health,The Christie NHS Foundation Trust,10/11/2016,Medical Equipment,Capital, NHS SUPPLY CHAIN ,0000533649," 40,178.95 "
Department of Health,The Christie NHS Foundation Trust,10/11/2016,Medical Equipment,Cancer Centre Services, OLYMPUS KEYMED ,0000537267," 26,134.08 "
Department of Health,The Christie NHS Foundation Trust,10/11/2016,Medical Equipment,Cancer Centre Services, OLYMPUS KEYMED ,0000533381," 45,074.76 "
Department of Health,The Christie NHS Foundation Trust,10/11/2016,Medical Equipment,Cancer Centre Services, OLYMPUS KEYMED ,0000533379," 60,741.67 "
Department of Health,The Christie NHS Foundation Trust,24/11/2016,Cold Store and Staff Welfare Development,Capital, PROJECTS LIMITED ,0000538448," 110,191.48 "
Department of Health,The Christie NHS Foundation Trust,15/11/2016,Pathology Department Refurbishment,Capital, PROJECTS LIMITED ,0000537724," 37,515.30 "
Department of Health,The Christie NHS Foundation Trust,24/11/2016,Audit Assurance & Fraud Plan 2016/17 Qtr 3,Finance & Business Development, ROYAL LIVERPOOL & BROADGREEN NHS TRUST ,0000538044," 25,662.00 "
Department of Health,The Christie NHS Foundation Trust,10/11/2016,E-Prescribing Project,Capital, SCC PLC ,0000534282," 26,703.17 "
Department of Health,The Christie NHS Foundation Trust,15/11/2016,Anaesthetics SLA - Oct 16,Cancer Centre Services, UNI HOSP OF SOUTH MANCHESTER NHS FT ,0000536614," 27,148.00 "
Department of Health,The Christie NHS Foundation Trust,15/11/2016,Critical Care SLA - Oct 16,Cancer Centre Services, UNI HOSP OF SOUTH MANCHESTER NHS FT ,0000536613," 29,638.00 "
Department of Health,The Christie NHS Foundation Trust,24/11/2016,Critical Care SLA - Jul 16 to Sept 16,Cancer Centre Services, UNI HOSP OF SOUTH MANCHESTER NHS FT ,0000537273," 28,211.69 "
